bitfinex/quotes_ETHUSD_20240729
["timestamp","ask_amount","ask_price","bid_price","bid_amount"]
[1722295108198,3.00734,3325.2,3324.3,3.00814]
[1722295108385,6.17016,3325.4,3323.5,3.0088]
[1722295108386,3.463734,3325.1,3323.5,3.0088]
[1722295108558,3.00786,3324.7,3323.4,3.00895]
[1722295108894,3.00786,3324.7,3323.0,2.4176]
[1722295108895,3.00786,3324.7,3323.8,3.00859]
[1722295109060,3.7813231,3325.1,3323.6,3.00878]
[1722295109061,3.00799,3324.5,3323.6,3.00878]
[1722295109393,3.00817,3324.3,3323.2,3.00907]
[1722295109579,3.00833,3324.1,3323.0,3.00932]
[1722295109911,3.00833,3324.1,3322.8,3.00942]
[1722295110124,3.00833,3324.1,3322.4,2.2722]
[1722295110125,0.67019704,3324.0,3322.9,3.0094]
[1722295110409,3.00861,3323.8,3322.4,3.00983]
[1722295110559,0.300861,3323.7,3322.4,3.00985]
[1722295110759,0.12009874,3323.6,3322.8,3.00943]
[1722295110964,3.55843,3324.0,3322.9,3.00934]
[1722295110965,0.55,3324.0,3322.9,3.00934]
[1722295111254,0.55,3324.0,3322.9,3.61725155]
[1722295111255,3.12860874,3323.9,3322.9,3.61725155]
[1722295111484,3.12860874,3323.9,3322.9,3.00934]
[1722295111696,0.12009874,3323.9,3323.2,3.00914]
[1722295111857,0.12009874,3323.9,3323.5,3.00885]
[1722295112354,0.12009874,3323.9,3322.9,5.35618]
[1722295112355,0.12001164,3323.8,3323.0,3.00926]
[1722295112688,3.00842,3324.0,3323.1,3.00922]
[1722295112994,3.00816,3324.3,3323.5,3.00887]
[1722295112995,0.6184353,3324.3,3323.5,3.00887]
[1722295113191,2.87828948,3324.4,3323.1,0.06017827]
[1722295113192,0.12023652,3323.9,3323.1,0.06017827]
[1722295113494,3.01,3324.5,3323.8,3.0086]
[1722295113691,3.01,3324.5,3323.9,3.0085]
[1722295114392,3.01,3324.5,3323.9,3.00843]
[1722295115697,3.01,3324.5,3323.1,0.54163483]
[1722295115698,3.01,3324.5,3323.5,3.00887]
[1722295115882,3.0082,3324.3,3323.3,3.00899]
[1722295116089,0.301,3324.4,3323.1,3.55084483]
[1722295116258,3.00816,3324.3,3323.1,3.55085483]
[1722295116458,3.00816,3324.3,3323.2,3.00914]
[1722295116459,3.0083,3324.2,3323.2,3.00914]
[1722295116677,0.69358953,3324.2,3323.1,0.54163483]
[1722295116880,3.00843,3324.0,3323.1,0.54163483]
[1722295117059,3.00843,3324.0,3323.0,3.00928]
[1722295117260,0.6184353,3324.1,3323.1,3.00922]
[1722295117493,0.69358953,3324.2,3323.3,3.00899]
[1722295117656,0.69358953,3324.2,3323.4,3.00896]
[1722295117862,0.37017595,3324.1,3323.4,3.00896]
[1722295118062,0.37017595,3324.1,3323.2,3.00912]
[1722295118284,0.37017595,3324.1,3322.6,3.578]
[1722295118285,3.00876,3323.7,3322.8,3.00948]
[1722295118487,3.00884,3323.6,3322.7,3.00959]
[1722295118724,3.00872,3323.7,3322.5,3.00976]
[1722295118856,0.55,3324.0,3322.3,5.27685]
[1722295118857,3.00902,3323.4,3322.3,5.27685]
[1722295119060,3.00879,3323.6,3322.3,5.27685]
[1722295119061,3.00879,3323.6,3322.3,2.85133177]
[1722295119323,3.00904,3323.4,3322.5,3.00977]
[1722295120593,3.00953,3322.8,3321.9,3.01027]
[1722295120796,0.6184353,3323.2,3321.8,0.00087]
[1722295120972,4.69533053,3323.1,3321.8,0.00087]
[1722295121313,3.01006,3322.2,3321.8,0.00087]
[1722295121795,0.1199077,3322.1,3321.8,0.00087]
[1722295122195,3.00987,3322.4,3321.8,0.00087]
[1722295122382,0.1199077,3322.0,3321.8,0.00087]
[1722295122583,3.00987,3322.4,3321.8,0.00087]
[1722295122781,0.11979523,3321.9,3321.8,0.00087]
[1722295122985,0.601958,3322.4,3321.8,0.00087]
[1722295123203,0.11979523,3321.9,3321.8,0.00087]
[1722295123405,0.601958,3322.4,3321.8,0.00087]
[1722295123576,0.11979523,3321.9,3321.8,0.00087]
[1722295123782,0.6184353,3322.8,3321.8,0.00087]
[1722295123783,3.00976,3322.6,3321.8,0.00087]
[1722295123979,0.11979523,3321.9,3321.8,0.00087]
[1722295124181,3.0098,3322.5,3321.8,0.00087]
[1722295124475,0.15460883,3322.7,3321.8,0.00087]
[1722295124476,0.11979523,3321.9,3321.8,3.01128]
[1722295124682,0.15460883,3322.7,3321.8,3.01127]
[1722295125079,0.11979523,3322.6,3321.9,3.01027]
[1722295125384,3.12951523,3322.6,3321.8,0.00087]
[1722295127125,3.00978,3322.5,3321.8,0.00087]
[1722295127307,3.00996,3322.3,3321.8,0.00087]
[1722295127610,0.1198599,3322.2,3321.8,0.00087]
[1722295127810,3.00987,3322.4,3321.8,0.00087]
[1722295128037,0.1198599,3322.1,3321.8,0.00087]
[1722295128193,0.300987,3322.3,3321.8,0.00087]
[1722295128194,3.01032,3321.9,3321.8,0.00087]
[1722295128666,3.12982851,3321.9,3321.8,0.00087]
[1722295128872,6.14014851,3321.9,3321.8,0.00087]
[1722295129484,10.68334803,3321.9,3321.8,0.00087]
[1722295129829,12.30168283,3321.9,3321.8,0.00087]
[1722295130116,6.28104283,3321.9,3321.8,0.00087]
[1722295130327,4.66270803,3321.9,3321.8,0.00087]
[1722295130467,8.22302803,3321.9,3321.8,0.00087]
[1722295130867,5.21270803,3321.9,3321.8,0.00087]
[1722295131178,1.65238803,3321.9,3321.8,0.00087]
[1722295131625,0.11950851,3321.9,3321.8,0.00087]
[1722295132066,3.00989,3322.4,3321.8,0.00087]
[1722295132269,0.11516446,3321.9,3321.8,0.00087]
[1722295132503,10.3796,3322.7,3321.8,3.01125]
[1722295132703,0.11516446,3321.9,3321.8,3.01125]
[1722295133015,0.11516446,3321.9,3321.8,0.00087]
[1722295133218,3.06124637,3323.2,3322.2,3.01]
[1722295133510,1.53221148,3323.1,3322.3,3.07012512]
[1722295133670,0.11516446,3323.1,3322.6,3.00967]
[1722295134069,3.00878,3323.6,3322.6,3.00967]
[1722295134309,0.11540909,3323.0,3322.7,3.00959]
[1722295134475,3.00865,3323.8,3322.7,3.31656768]
[1722295134675,0.11540909,3322.9,3322.7,0.30697768]
[1722295134893,3.00875,3323.7,3322.7,3.31654768]
[1722295135106,1.53191636,3323.6,3322.7,3.31654768]
[1722295135308,1.64732545,3323.6,3322.7,0.30697768]
[1722295135605,0.11540909,3323.6,3322.9,3.00941]
[1722295135808,1.5319003,3323.5,3322.7,3.31656768]
[1722295136104,1.5319003,3323.5,3322.0,3.578]
[1722295136105,3.00924,3323.1,3322.1,3.01014]
[1722295136327,3.00918,3323.2,3322.0,3.01021]
[1722295136637,0.11553842,3323.1,3322.1,3.01012]
[1722295136905,1.53214024,3323.0,3321.9,3.01032]
[1722295137113,3.00888,3323.5,3322.0,3.0704027]
[1722295137307,0.11559462,3322.9,3322.4,3.00985]
[1722295137472,3.00853,3323.9,3322.6,2.3233]
[1722295137669,1.53194533,3323.8,3322.7,0.06018147]
[1722295137875,10.681,3324.4,3322.8,3.06967725]
[1722295138077,3.00851,3324.0,3322.7,3.00959]
[1722295138309,3.00851,3324.0,3322.8,0.533289]
[1722295138310,1.53167969,3323.9,3322.8,0.533289]
[1722295138498,3.00867,3323.8,3322.8,3.542779]
[1722295139080,3.00867,3323.8,3322.8,0.533289]
[1722295139395,3.00847,3324.0,3322.6,5.33299]
[1722295139615,3.0084,3324.1,3322.7,0.06017724]
[1722295139616,3.00893,3323.5,3322.7,0.06017724]
[1722295139978,0.11623281,3323.4,3322.8,0.0601841]
[1722295140201,3.62693421,3324.1,3322.9,3.31638041]
[1722295140400,0.11623281,3323.3,3323.0,3.06949686]
[1722295140624,3.00851,3323.9,3323.0,3.06949686]
[1722295140902,3.00851,3323.9,3323.0,0.06017686]
[1722295140903,0.11623841,3323.2,3323.0,0.06017686]
[1722295141101,3.00851,3323.9,3323.0,0.06017686]
[1722295141304,3.00834,3324.1,3323.1,0.33765473]
[1722295141500,0.11623841,3323.8,3323.4,3.00895]
[1722295141735,3.00821,3324.3,3323.4,3.00895]
[1722295141736,0.11625527,3324.0,3323.5,0.0601708]
[1722295142033,10.99859421,3324.4,3323.5,3.0690408]
[1722295142034,7.37,3324.4,3323.5,3.0690408]
[1722295142345,0.11627213,3323.9,3323.8,3.0086]
[1722295142632,3.93561132,3324.8,3323.6,2.60650408]
[1722295142633,3.00801,3324.5,3323.6,2.60650408]
[1722295142836,3.00788,3324.6,3323.6,2.60650408]
[1722295142995,0.11630023,3324.4,3323.7,3.3355263]
[1722295143192,0.11630023,3324.4,3323.7,3.27535731]
[1722295143394,0.11630023,3324.4,3323.8,0.0601641]
[1722295143597,3.62664323,3324.8,3323.9,3.00851]
[1722295143798,0.11648566,3324.3,3324.0,3.06853407]
[1722295144065,3.00734,3325.2,3324.1,0.60770441]
[1722295144066,0.61892323,3324.9,3324.1,0.60770441]
[1722295144355,3.00743,3325.1,3324.2,3.06838862]
[1722295144498,1.53112948,3325.0,3324.2,3.06838862]
[1722295144697,0.61892323,3325.4,3324.3,0.06015859]
[1722295144929,0.61892323,3325.4,3324.5,3.00795]
[1722295144930,1.53109331,3325.3,3324.5,3.00795]
[1722295145090,9.756,3326.1,3324.8,3.00763]
[1722295145091,3.00678,3325.9,3324.8,3.00763]
[1722295145299,7.37,3326.1,3324.7,2.3604]
[1722295145300,3.00689,3325.7,3324.7,2.3604]
[1722295145501,7.37,3326.1,3324.7,2.3604]
[1722295145502,3.6256081,3325.9,3324.7,2.3604]
[1722295145703,8.29834716,3326.1,3324.1,3.00832]
[1722295145704,6.01477,3325.2,3324.1,3.00832]
[1722295145938,0.6188981,3325.5,3324.2,0.545752]
[1722295146271,3.00744,3325.1,3324.1,3.00833]
[1722295146541,3.00763,3324.9,3324.0,2.4492]
[1722295146830,3.00801,3324.5,3324.0,2.4492]
[1722295147030,3.00779,3324.7,3324.0,2.4492]
[1722295147254,0.6188981,3325.2,3324.0,2.4492]
[1722295147255,3.00794,3324.6,3324.0,2.4492]
[1722295147537,0.601564,3324.6,3324.0,2.4492]
[1722295147699,3.00798,3324.5,3324.0,2.4492]
[1722295148302,3.00783,3324.7,3324.0,2.4492]
[1722295148597,3.00754,3325.0,3324.0,2.4492]
[1722295148845,7.9888981,3325.3,3324.4,3.00803]
[1722295148846,10.37724,3325.3,3324.4,3.00803]
[1722295149024,0.94672453,3325.2,3324.4,3.00803]
[1722295149201,3.00724,3325.3,3324.5,3.00795]
[1722295149560,11.30500716,3326.0,3324.4,0.06015757]
[1722295149561,3.0069,3325.7,3324.7,3.00778]
[1722295149768,3.00686,3325.8,3324.8,0.06014683]
[1722295149894,0.300686,3325.7,3324.8,0.06014683]
[1722295150264,10.37666,3326.0,3325.1,3.00735]
[1722295150558,3.00666,3326.0,3325.1,3.00735]
[1722295150736,3.0067,3325.9,3325.0,2.337]
[1722295151131,3.00694,3325.7,3325.0,2.337]
[1722295151432,3.0067,3325.9,3325.1,3.00742]
[1722295151636,3.30737,3325.9,3325.1,3.00742]
[1722295151937,3.30737,3325.9,3325.0,2.39714412]
[1722295151938,0.30067,3325.9,3325.2,3.00733]
[1722295152151,0.30067,3325.9,3325.2,3.0674741]
[1722295152435,3.62400514,3326.6,3325.2,0.0601441]
[1722295152436,3.00661,3326.0,3325.2,0.0601441]
[1722295152645,3.00682,3325.8,3325.0,2.337]
[1722295153810,7.37,3326.7,3325.0,5.40465369]
[1722295154003,6.62387514,3326.8,3325.0,5.40465369]
[1722295154004,3.00645,3326.2,3325.0,5.40465369]
[1722295154224,3.0,3326.8,3325.0,3.23837506]
[1722295154225,3.307225,3326.1,3325.0,3.23837506]
[1722295154420,3.00609,3326.6,3325.0,2.39714369]
[1722295154650,3.0,3326.8,3325.1,3.00737]
[1722295154651,3.12331469,3326.0,3325.1,3.00737]
[1722295154953,3.00682,3325.8,3325.0,2.337]
[1722295155156,3.00661,3326.0,3325.0,2.337]
[1722295155157,0.11670469,3325.9,3325.0,2.337]
[1722295155340,3.00646,3326.2,3325.3,3.00724]
[1722295155541,0.11670469,3325.8,3325.4,3.06728785]
[1722295155720,3.00626,3326.4,3325.4,3.06728785]
[1722295155916,7.37,3326.7,3325.4,3.06728785]
[1722295155917,3.00618,3326.5,3325.6,3.00689]
[1722295156128,0.11700222,3326.3,3325.6,3.00689]
[1722295156332,3.00658,3326.1,3325.2,3.00727]
[1722295157052,0.11700222,3326.0,3325.5,3.00706]
[1722295157256,3.00625,3326.4,3325.5,3.00706]
[1722295157429,3.55608,3326.6,3325.0,5.57818]
[1722295157430,0.11704992,3325.9,3325.0,5.57818]
[1722295157771,3.00645,3326.2,3325.2,3.00732]
[1722295157967,3.00645,3326.2,3325.3,3.00723]
[1722295158270,3.00674,3325.9,3325.0,2.337]
[1722295158425,0.11761981,3326.1,3325.0,2.337]
[1722295158625,3.00681,3325.8,3325.0,2.337]
[1722295158847,3.00688,3325.7,3325.0,2.337]
[1722295159251,0.11761701,3325.6,3325.0,2.337]
[1722295159964,3.00652,3326.1,3325.2,3.00733]
[1722295160131,0.11761701,3325.5,3325.2,3.00733]
[1722295160335,3.00704,3325.6,3325.0,2.337]
[1722295160581,3.00724,3325.4,3324.5,2.3204]
[1722295160873,3.12484579,3325.3,3324.5,2.3204]
[1722295161061,3.73803837,3325.3,3324.5,5.32835]
[1722295161583,3.00745,3325.1,3324.5,2.3204]
[1722295161874,0.11754407,3325.0,3324.6,0.06015363]
[1722295162037,3.00704,3325.6,3324.6,6.07583363]
[1722295162241,0.11745988,3324.9,3324.7,3.00778]
[1722295162475,3.00708,3325.5,3324.7,3.00778]
[1722295162638,0.11731675,3324.8,3324.7,3.06792899]
[1722295162841,0.11731675,3324.8,3324.7,0.06014899]
[1722295163041,3.00715,3325.4,3324.5,5.32831]
[1722295163042,3.00715,3325.4,3324.5,2.3204]
[1722295163265,0.11731675,3324.8,3324.5,2.3204]
[1722295163473,3.00753,3325.0,3324.5,2.3204]
[1722295163674,0.11731955,3324.7,3324.1,3.55]
[1722295163840,0.11731955,3324.7,3323.9,2.3999]
[1722295163841,3.00779,3324.7,3323.9,2.3999]
[1722295164137,0.11729709,3324.6,3324.3,3.00814]
[1722295164341,0.11729709,3324.6,3324.1,3.00824]
[1722295164580,3.00757,3325.0,3324.1,3.00824]
[1722295164795,3.00704,3325.6,3324.2,2.3225]
[1722295165078,7.37,3325.7,3324.8,3.00769]
[1722295165079,3.00688,3325.7,3324.8,3.00769]
[1722295165240,3.05214007,3326.2,3324.8,3.06783536]
[1722295165241,0.11729709,3325.5,3324.8,3.06783536]
[1722295165441,0.11722976,3325.6,3324.8,3.06783536]
[1722295165651,3.00678,3325.9,3324.8,3.06783536]
[1722295165652,3.00689,3325.7,3324.8,3.06783536]
[1722295165852,0.11722976,3325.5,3324.9,3.0076]
[1722295166071,0.601367,3325.7,3325.0,3.0075]
[1722295166275,0.11722976,3325.4,3325.0,3.0075]
[1722295166443,3.00677,3325.9,3325.0,3.0075]
[1722295166647,0.11731113,3325.3,3325.0,0.0601453]
[1722295166979,3.307272,3326.0,3325.1,3.00742]
[1722295167295,0.11731113,3325.9,3325.2,3.00733]
[1722295167513,0.11731113,3325.9,3325.0,3.0676453]
[1722295167514,0.11731113,3325.9,3325.4,3.00709]
[1722295167804,0.11731113,3325.9,3325.3,3.00721]
[1722295167805,3.00589,3326.8,3325.9,3.00662]
[1722295167944,0.375,3327.0,3326.0,3.06667401]
[1722295168187,3.0058,3326.9,3326.0,3.06667401]
[1722295168435,0.375,3327.0,3326.4,3.00624]
[1722295168639,0.375,3327.0,3326.5,3.00615]
[1722295169007,0.375,3327.0,3326.6,3.00604]
[1722295169208,0.370874,3327.0,3326.7,3.00597]
[1722295169419,0.370874,3327.0,3326.6,0.06011754]
[1722295169420,0.370874,3327.0,3326.8,3.00588]
[1722295169620,0.370874,3327.0,3326.9,3.0058]
[1722295169923,0.370874,3327.0,3326.9,12.504377]
[1722295171225,0.370874,3327.0,3326.9,8.954377]
[1722295173466,0.370874,3327.0,3326.9,11.960177]
[1722295174034,0.370874,3327.0,3326.9,8.954377]
[1722295175516,3.00486,3328.0,3327.1,3.00555]
[1722295175758,7.37,3328.4,3327.2,0.06010347]
[1722295176125,7.37,3328.4,3327.3,0.06009821]
[1722295176340,7.37,3328.4,3327.8,3.00496]
[1722295176546,3.0041,3328.8,3327.9,3.06492173]
[1722295176717,3.0041,3328.8,3328.0,3.00479]
[1722295176916,0.30041,3328.7,3328.0,3.00479]
[1722295177224,3.00444,3328.4,3327.4,3.00529]
[1722295177742,3.00427,3328.6,3327.5,3.00524]
[1722295178456,3.00445,3328.4,3327.5,3.00524]
[1722295178828,3.00435,3328.5,3327.6,3.00514]
[1722295179238,0.30041,3328.7,3327.7,0.06009133]
[1722295179451,3.00405,3328.9,3327.9,3.00482]
[1722295179761,9.7394,3329.0,3327.5,3.00524]
[1722295179762,3.00442,3328.5,3327.5,3.00524]
[1722295179961,3.00442,3328.5,3327.3,3.00542]
[1722295180277,12.74335,3329.0,3326.9,2.3416]
[1722295180278,3.00497,3327.9,3326.9,2.3416]
[1722295180492,3.00497,3327.9,3327.1,3.00561]
[1722295180767,7.37,3328.4,3327.4,3.00534]
[1722295180768,3.00463,3328.2,3327.4,3.00534]
[1722295181080,3.00463,3328.2,3327.2,3.00546]
[1722295181219,3.00463,3328.2,3327.3,3.00542]
[1722295181423,4.342543,3328.2,3327.3,3.00542]
[1722295181885,1.337913,3328.2,3327.4,0.06010034]
[1722295182037,10.37444,3328.4,3327.5,3.00518]
[1722295182357,10.37444,3328.4,3327.6,3.06525559]
[1722295182570,3.00444,3328.4,3327.6,3.06525559]
[1722295182929,3.00428,3328.6,3327.7,3.00507]
[1722295183251,3.300428,3328.5,3327.6,0.06009559]
[1722295183430,0.300428,3328.5,3327.6,0.06009559]
[1722295183623,6.00411,3328.8,3327.6,0.06009559]
[1722295183841,6.00411,3328.8,3327.9,3.00486]
[1722295184044,3.00418,3328.7,3327.9,0.06009012]
[1722295184426,3.00442,3328.5,3327.9,0.06009012]
[1722295185236,0.1113144,3328.4,3327.9,0.06009012]
[1722295186250,0.1113144,3328.4,3327.9,0.60181013]
[1722295186426,3.00387,3329.1,3328.1,3.00463]
[1722295186627,10.37375,3329.2,3328.2,3.06470531]
[1722295186628,3.00391,3329.0,3328.2,3.06470531]
[1722295186963,3.1152244,3329.0,3328.2,3.06470531]
[1722295187678,0.1113144,3329.0,3328.3,0.06008543]
[1722295188001,7.37,3329.9,3328.5,3.00435]
[1722295188276,3.00319,3329.8,3328.8,3.00406]
[1722295188605,9.7926,3330.4,3328.6,0.5957111]
[1722295188606,3.003,3330.0,3329.0,3.00389]
[1722295188730,0.3003,3329.9,3329.1,3.06386611]
[1722295188927,3.00299,3330.1,3329.2,3.0037]
[1722295189238,3.00299,3330.1,3329.3,0.06006611]
[1722295189888,3.0,3330.0,3329.3,3.06367611]
[1722295190048,6.00283,3330.2,3329.3,3.06367611]
[1722295190394,0.375,3330.7,3329.4,2.3068]
[1722295190663,3.00275,3330.3,3329.4,5.31033]
[1722295190978,3.00251,3330.6,3329.4,2.3068]
[1722295191183,3.00251,3330.6,3329.6,3.00336]
[1722295191333,0.375,3330.7,3329.4,5.31033]
[1722295191661,3.34026,3330.6,3329.7,3.00326]
[1722295191863,3.00271,3330.4,3329.4,5.31028]
[1722295192369,3.3402,3330.6,3329.4,2.3068]
[1722295192667,0.33773,3330.6,3329.5,0.06005972]
[1722295192964,0.33773,3330.6,3329.8,3.00316]
[1722295193342,0.33773,3330.6,3329.4,2.3068]
[1722295193343,0.37151,3330.5,3329.7,3.00325]
[1722295193885,0.37151,3330.5,3329.8,3.00316]
[1722295194226,0.375,3330.7,3329.4,2.3068]
[1722295194227,0.375,3330.7,3329.9,3.06312626]
[1722295194435,0.375,3330.7,3330.0,3.00298]
[1722295194630,0.375,3330.7,3329.8,3.00318]
[1722295194956,0.375,3330.7,3330.0,3.00299]
[1722295195544,0.375,3330.7,3330.1,0.06005228]
[1722295195725,0.375,3330.7,3330.2,0.30630423]
[1722295195959,0.375,3330.7,3330.3,0.06004673]
[1722295196468,0.375,3330.7,3330.5,3.00248]
[1722295196627,0.375,3330.7,3330.5,3.06252415]
[1722295196826,0.375,3330.7,3330.6,3.00246]
[1722295198165,0.375,3330.7,3330.4,3.00262]
[1722295198337,0.375,3330.7,3330.5,0.06004196]
[1722295198545,0.11306921,3330.6,3330.5,0.06004196]
[1722295199362,0.11306921,3330.6,3330.0,3.539]
[1722295199563,0.11306921,3330.6,3330.1,0.654207]
[1722295199732,0.11306921,3330.6,3330.0,3.00298]
[1722295200947,0.11306921,3330.6,3329.8,2.4445]
[1722295201144,3.11558921,3330.6,3329.8,2.4445]
[1722295201378,0.11306921,3330.6,3329.3,3.00361]
[1722295201535,3.00288,3330.2,3329.3,3.00361]
[1722295201867,0.11306921,3330.6,3329.4,0.532051]
[1722295202076,0.11295458,3330.1,3328.7,2.3169]
[1722295202232,0.11295458,3330.1,3328.1,10.879]
[1722295202233,3.0033,3329.7,3328.5,3.00434]
[1722295202571,13.92253,3330.6,3328.5,3.00434]
[1722295202572,3.11574481,3330.0,3329.0,3.00384]
[1722295202727,3.11574481,3330.0,3328.6,3.59907225]
[1722295202728,0.11273362,3329.6,3329.1,0.06006266]
[1722295203068,0.11273362,3329.5,3329.2,0.06006287]
[1722295203563,0.11273362,3329.4,3329.2,3.06370287]
[1722295203773,3.00273,3330.3,3329.4,3.00348]
[1722295204087,3.00273,3330.3,3329.5,3.06349284]
[1722295204229,3.00274,3330.3,3329.5,0.06006284]
[1722295204463,7.37,3330.6,3329.6,0.30635928]
[1722295204702,3.00264,3330.4,3329.4,3.00353]
[1722295204904,3.0026,3330.5,3329.3,5.34183]
[1722295205067,3.0026,3330.5,3329.6,3.00335]
[1722295206204,0.375,3330.7,3329.7,3.06332601]
[1722295206424,0.375,3330.7,3330.0,3.003]
[1722295206719,0.375,3330.7,3329.9,3.00308]
[1722295206871,0.375,3330.7,3330.0,0.300308]
[1722295207060,0.375,3330.7,3329.8,3.00317]
[1722295207787,3.00249,3330.6,3329.8,3.00317]
[1722295208602,0.375,3330.7,3329.8,3.00317]
[1722295208981,0.375,3330.7,3329.6,3.00336]
[1722295209192,3.37737,3330.7,3329.4,7.076653]
[1722295209410,3.37737,3330.7,3329.7,3.00327]
[1722295209411,3.00263,3330.5,3329.7,3.00327]
[1722295210209,3.37737,3330.7,3329.8,3.06318403]
[1722295210429,3.37737,3330.7,3329.8,0.06005403]
[1722295210430,3.00246,3330.6,3329.8,0.06005403]
[1722295210727,3.00246,3330.6,3329.8,3.06322403]
[1722295211078,3.00267,3330.4,3329.5,3.9449153]
[1722295211318,3.00283,3330.2,3329.1,3.00374]
[1722295211614,5.79643,3330.7,3329.3,3.00357]
[1722295211615,3.00266,3330.4,3329.3,3.00357]
[1722295211798,3.00266,3330.4,3329.4,3.00353]
[1722295211799,3.0028,3330.3,3329.4,3.00353]
[1722295212204,3.0028,3330.3,3329.3,3.00357]
[1722295212205,3.0028,3330.3,3329.5,3.00344]
[1722295212389,3.55249,3330.6,3329.6,0.06006055]
[1722295212390,0.55,3330.6,3329.6,0.06006055]
[1722295212593,3.0027,3330.4,3329.6,0.06006055]
[1722295212900,0.375,3330.7,3329.9,3.00309]
[1722295213130,0.375,3330.7,3330.0,3.00291]
[1722295213287,0.375,3330.7,3330.1,3.00289]
[1722295213612,0.375,3330.7,3330.3,3.00272]
[1722295213814,0.375,3330.7,3330.4,3.06267504]
[1722295214012,0.375,3330.7,3330.5,3.00253]
[1722295214217,0.375,3330.7,3330.6,3.00246]
[1722295214418,0.375,3330.7,3330.6,3.302706]
[1722295214573,0.48766927,3330.7,3330.6,3.302706]
[1722295214781,0.375,3330.7,3330.6,3.302706]
[1722295215016,0.375,3330.7,3330.6,6.305166]
[1722295216015,0.375,3330.7,3330.6,8.620466]
[1722295216522,0.375,3330.7,3330.6,11.622926]
[1722295216722,0.375,3330.7,3330.6,14.625386]
[1722295216947,0.00242168,3330.7,3330.6,17.625386]
[1722295217158,3.00051,3332.8,3332.0,3.00117]
[1722295217385,7.37,3332.9,3332.1,0.06001954]
[1722295217645,7.37,3332.9,3332.1,3.00104]
[1722295217646,10.37041,3332.9,3332.1,3.00104]
[1722295217808,1.52752707,3332.8,3332.2,0.06001312]
[1722295218008,11.52150399,3332.9,3332.2,0.06001312]
[1722295218609,3.0006,3332.7,3331.7,3.0014]
[1722295219149,4.3805704,3332.8,3331.5,5.31694]
[1722295219150,1.3800904,3332.8,3332.0,3.00118]
[1722295219510,3.00071,3332.6,3331.6,3.00149]
[1722295219835,7.37,3332.9,3331.7,0.06001873]
[1722295220038,7.37,3332.9,3332.1,3.00103]
[1722295220234,7.37,3332.9,3332.2,3.06101314]
[1722295220546,10.37045,3332.9,3332.2,0.06001314]
[1722295220911,7.37,3332.9,3332.2,0.06001314]
[1722295221146,7.37,3332.9,3331.8,0.06001316]
[1722295221349,7.37,3332.9,3332.1,3.00102]
[1722295221555,2.99996,3333.4,3332.5,3.00072]
[1722295221717,2.99996,3333.4,3332.6,3.06065683]
[1722295222151,2.99968,3333.7,3332.7,3.00056]
[1722295222152,2.99981,3333.6,3332.7,3.00056]
[1722295222345,2.99968,3333.7,3332.7,3.00056]
[1722295222346,2.99988,3333.5,3332.7,3.00056]
[1722295222658,10.36951,3333.9,3332.8,0.0600054]
[1722295222948,7.37,3333.9,3332.8,0.0600054]
[1722295223149,7.37,3333.9,3333.0,3.00025]
[1722295223150,10.36955,3333.9,3333.0,3.00025]
[1722295223443,2.99959,3333.8,3333.1,0.05999518]
[1722295224114,3.6056799,3333.8,3333.1,0.05999519]
[1722295224446,2.99959,3333.8,3332.9,3.00032]
[1722295224651,2.99968,3333.7,3332.9,3.00032]
[1722295224849,2.99953,3333.9,3333.0,0.05999521]
[1722295225259,2.99931,3334.1,3333.3,3.00001]
[1722295225454,2.99931,3334.1,3332.7,3.84505668]
[1722295225455,2.99949,3333.9,3332.8,3.00046]
[1722295225628,2.99922,3334.2,3333.3,3.00002]
[1722295225830,2.99922,3334.2,3333.4,0.05999014]
[1722295226658,0.19873424,3334.5,3333.7,2.99966]
[1722295226832,0.19873424,3334.5,3333.8,0.05998478]
[1722295227030,2.99904,3334.4,3333.8,0.05998478]
[1722295227759,2.99904,3334.4,3333.6,3.05973482]
[1722295228362,2.77236466,3334.5,3333.7,2.99966]
[1722295228525,2.77236466,3334.5,3333.8,0.05998416]
[1722295228918,0.19873424,3334.5,3333.8,0.05998416]
[1722295229120,0.1466265,3334.5,3333.8,0.05998416]
[1722295229345,0.1466265,3334.5,3333.9,2.99946]
[1722295229558,0.11442155,3334.4,3334.0,0.05998068]
[1722295230516,0.11442155,3334.4,3333.5,6.53884]
[1722295230517,0.11442155,3334.4,3333.5,2.99984]
[1722295230719,3.11347155,3334.4,3333.5,2.99984]
[1722295230918,3.11347155,3334.4,3333.4,2.3492]
[1722295230919,0.74031736,3334.4,3333.4,2.3492]
[1722295231224,0.74031736,3334.4,3333.5,0.05998888]
[1722295231225,2.99913,3334.3,3333.5,0.05998888]
[1722295231424,0.11442155,3334.4,3333.4,2.3492]
[1722295231425,3.11346155,3334.4,3333.4,2.3492]
[1722295231656,3.11389281,3334.2,3333.4,2.3492]
[1722295231858,0.15663665,3334.3,3333.5,0.05998889]
[1722295232066,0.1466265,3334.5,3333.9,2.99942]
[1722295232364,0.1466265,3334.5,3334.0,0.05997658]
[1722295232670,0.15663665,3334.4,3334.0,0.05997658]
[1722295233035,0.15663665,3334.4,3334.1,2.99923]
[1722295233372,0.15663665,3334.4,3334.2,0.05997681]
[1722295233733,0.15663665,3334.4,3334.3,6.05823683]
[1722295233946,0.1466265,3334.5,3334.4,2.99904]
[1722295234169,0.1466265,3334.5,3334.4,6.05804773]
[1722295234371,0.1466265,3334.5,3334.4,3.05900773]
[1722295234666,0.1466265,3334.5,3334.4,3.81635867]
[1722295234967,0.1466265,3334.5,3334.4,6.81539867]
[1722295237287,0.1466265,3334.5,3334.4,0.75735094]
[1722295237594,0.1466265,3334.5,3334.0,6.53837]
[1722295237595,0.30376547,3334.5,3334.0,2.99937]
[1722295237863,0.30376547,3334.5,3333.8,2.3536]
[1722295237864,0.1466265,3334.5,3333.8,2.3536]